lending/lending_fUSD_20240128
["ID","MTS","AMOUNT","RATE_DAILY","PERIOD"]
[312926321,1706462157597,500.0,0.00054794,120]
[312926322,1706462157874,500.0,0.00053424,31]
[312926323,1706462157907,500.0,0.00054246,31]
[312926324,1706462158058,500.0,0.00052054,31]
[312926325,1706462158141,500.0,0.0005452,120]
[312926326,1706462158247,500.0,0.00052054,31]
[312926327,1706462158331,500.0,0.00052328,31]
[312926328,1706462158399,500.0,0.00054794,120]
[312926329,1706462158480,500.0,0.00053698,31]
[312926330,1706462158512,500.0,0.00052328,31]
[312926331,1706462158544,500.0,0.00052054,31]
[312926332,1706462158607,500.0,0.00052602,31]
[312926333,1706462158640,500.0,0.0005315,31]
[312926334,1706462158761,500.0,0.00053972,31]
[312926335,1706462158825,500.0,0.00052328,31]
[312926336,1706462158879,500.0,0.00052876,31]
[312926337,1706462158955,500.0,0.00053424,31]
[312926338,1706462159176,500.0,0.00054246,31]
[312926339,1706462159215,500.0,0.00052602,31]
[312926340,1706462159247,621.97354507,0.0005315,31]
[312926341,1706462159305,500.0,0.0005452,120]
[312926342,1706462159338,500.0,0.00052876,31]
[312926343,1706462159483,500.0,0.00052602,31]
[312926344,1706462159517,500.0,0.00053698,31]
[312926345,1706462159593,500.0,0.00054794,120]
[312926346,1706462159644,500.0,0.0005315,31]
[312926347,1706462159759,500.0,0.00052876,31]
[312926348,1706462159792,500.0,0.00053972,31]
[312926349,1706462160196,359.82847572,0.0005,120]
[312926350,1706462160351,500.0,0.00053424,31]
[312926351,1706462160388,500.0,0.0005315,31]
[312926352,1706462160538,500.0,0.00054246,31]
[312926353,1706462160635,500.0,0.00053424,31]
[312926354,1706462160668,-25000.0,0.00022769,2]
[312926355,1706462160904,500.0,0.00053698,31]
[312926356,1706462160986,315.08970987,0.00053698,31]
[312926357,1706462161023,540.50182866,0.00052054,31]
[312926358,1706462161132,500.0,0.0005452,120]
[312926359,1706462161177,500.0,0.00053972,31]
[312926360,1706462161428,500.0,0.00054794,120]
[312926361,1706462161740,-25000.0,0.00022769,2]
[312926362,1706462161791,500.0,0.00054246,31]
[312926363,1706462161961,500.0,0.00052054,31]
[312926364,1706462162064,500.0,0.0005452,120]
[312926365,1706462162331,500.0,0.00054794,120]
[312926366,1706462162469,546.1,0.00052054,31]
[312926367,1706462162572,500.0,0.00052328,31]
[312926368,1706462162702,546.1,0.00052328,31]
[312926369,1706462162954,-25000.0,0.00022769,2]
[312926370,1706462163002,546.1,0.00052602,31]
[312926371,1706462163213,290.9,0.00052602,31]
[312926372,1706462163433,500.0,0.00052054,31]
[312926373,1706462163620,546.1,0.00052876,31]
[312926374,1706462163700,500.0,0.00052328,31]
[312926375,1706462163908,-12014.0445,0.00022769,2]
[312926376,1706462163933,-158.19916146,0.00022818,2]
[312926377,1706462163958,-2273.7437,0.00022899,2]
[312926378,1706462163980,-1000.0,0.00022899,2]
[312926379,1706462164004,-9554.01263854,0.00022899,2]
[312926380,1706462164047,546.1,0.0005315,31]
[312926381,1706462164082,500.0,0.00052602,31]
[312926382,1706462164290,500.0,0.00052876,31]
[312926383,1706462164379,500.0,0.00052054,31]
[312926384,1706462164415,546.1,0.00053424,31]
[312926385,1706462164473,500.0,0.00052054,31]
[312926386,1706462164649,500.0,0.00052328,31]
[312926387,1706462164745,500.0,0.00052328,31]
[312926388,1706462164783,1185.72531,0.00054794,72]
[312926389,1706462164819,1185.72532,0.00054794,72]
[312926390,1706462164853,1185.72531,0.00054794,72]
[312926391,1706462164887,500.0,0.0005315,31]
[312926392,1706462164920,1185.72531,0.00054794,72]
[312926393,1706462164953,1185.72531,0.0005435,70]
[312926394,1706462164985,1185.72531,0.00054794,72]
[312926395,1706462165018,500.0,0.00052054,31]
[312926396,1706462165055,546.1,0.00053698,31]
[312926397,1706462165255,500.0,0.00052602,31]
[312926398,1706462165330,546.1,0.00053972,31]
[312926399,1706462165363,500.0,0.00052602,31]
[312926400,1706462165491,636.96,0.00053424,31]
[312926401,1706462165599,500.0,0.00052876,31]
[312926402,1706462165634,500.0,0.00052328,31]
[312926403,1706462165709,546.1,0.00054246,31]
[312926404,1706462165863,500.0,0.00052876,31]
[312926405,1706462165900,500.0,0.0005315,31]
[312926406,1706462165980,546.1,0.0005452,120]
[312926407,1706462166226,500.0,0.00053424,31]
[312926408,1706462166261,546.1,0.00054794,120]
[312926409,1706462166432,500.0,0.00052054,31]
[312926410,1706462166510,500.0,0.0005315,31]
[312926411,1706462166630,500.0,0.00052602,31]
[312926412,1706462166820,500.0,0.00053424,31]
[312926413,1706462166901,500.0,0.00052876,31]
[312926414,1706462167045,500.0,0.00052328,31]
[312926415,1706462167084,500.0,0.00053698,31]
[312926416,1706462167117,500.0,0.00053698,31]
[312926417,1706462167233,500.0,0.0005315,31]
[312926418,1706462167304,500.0,0.00052602,31]
[312926419,1706462167338,579.93,0.00053972,31]
[312926420,1706462167371,2500.0,0.0005,120]
[312926421,1706462167403,500.0,0.00053972,31]
[312926422,1706462167548,500.0,0.00053424,31]
[312926423,1706462167600,500.0,0.00052876,31]
[312926424,1706462167684,500.0,0.00054246,31]
[312926425,1706462167846,500.0,0.0005315,31]
[312926426,1706462168117,500.0,0.00053424,31]
[312926427,1706462168150,500.0,0.00052054,31]
[312926428,1706462168182,500.0,0.00053698,31]
[312926429,1706462168289,427.05103085,0.0005452,120]
[312926430,1706462168380,500.0,0.00053698,31]
[312926431,1706462168414,500.0,0.00052328,31]
[312926432,1706462168446,500.0,0.00053972,31]
[312926433,1706462168647,500.0,0.00053972,31]
[312926434,1706462168705,500.0,0.00052602,31]
[312926435,1706462168745,500.0,0.00054246,31]
[312926436,1706462168922,500.0,0.00054246,31]
[312926437,1706462169330,500.0,0.0005452,120]
[312926438,1706462169365,500.0,0.00052054,31]
[312926439,1706462169477,175.54669051,0.00054794,120]
[312926440,1706462169535,500.0,0.0005452,120]
[312926441,1706462169599,560.1817989,0.00052328,31]
[312926442,1706462169867,500.0,0.00054794,120]
[312926443,1706462170475,184.25,0.00052054,31]
[312926444,1706462172705,923.94,0.00052054,31]
[312926445,1706462172968,923.94,0.00052328,31]
[312926446,1706462173219,923.94,0.00052602,31]
[312926447,1706462173327,500.0,0.00052054,31]
[312926448,1706462173530,923.94,0.00052876,31]
[312926449,1706462173599,500.0,0.00052328,31]
[312926450,1706462173853,923.94,0.0005315,31]
[312926451,1706462173891,500.0,0.00052602,31]
[312926452,1706462173964,500.0,0.00052054,31]
[312926453,1706462174130,923.94,0.00053424,31]
[312926454,1706462174164,500.0,0.00052876,31]
[312926455,1706462174197,500.0,0.00052328,31]
[312926456,1706462174403,923.94,0.00053698,31]
[312926457,1706462174435,162.48,0.0005315,31]
[312926458,1706462174467,500.0,0.00052602,31]
[312926459,1706462174553,100000.0,0.000538,120]
[312926460,1706462174760,923.94,0.00053972,31]
[312926461,1706462174801,315.38,0.00052876,31]
[312926462,1706462175035,923.94,0.00054246,31]
[312926463,1706462175113,500.0,0.00052054,31]
[312926464,1706462175181,500.0,0.00052054,31]
[312926465,1706462175342,923.94,0.0005452,120]
[312926466,1706462175390,500.0,0.00052328,31]
[312926467,1706462175475,500.0,0.00052328,31]
[312926468,1706462175542,500.0,0.00052054,31]
[312926469,1706462175647,923.94,0.00054794,120]
[312926470,1706462175687,500.0,0.00052602,31]
[312926471,1706462175727,500.0,0.00052602,31]
[312926472,1706462175850,500.0,0.00052328,31]
[312926473,1706462175954,500.0,0.00052876,31]
[312926474,1706462176010,500.0,0.00052876,31]
[312926475,1706462176129,500.0,0.00052602,31]
[312926476,1706462176274,150.0,0.000547,33]
[312926477,1706462176316,500.0,0.0005315,31]
[312926478,1706462176636,488.1397516,0.0005315,31]
[312926479,1706462176738,500.0,0.00052876,31]
[312926480,1706462176901,500.0,0.00053424,31]
[312926481,1706462177035,500.0,0.0005315,31]
[312926482,1706462177210,500.0,0.00053698,31]
[312926483,1706462177320,500.0,0.00053424,31]
[312926484,1706462177500,500.0,0.00053972,31]
[312926485,1706462177604,365.0824129,0.00053698,31]
[312926486,1706462177803,500.0,0.00054246,31]
[312926487,1706462178119,500.0,0.0005452,120]
[312926488,1706462178156,169.41549949,0.0005,120]
[312926489,1706462178374,500.0,0.00054794,120]
[312926490,1706462180088,500.0,0.00052054,31]
[312926491,1706462180351,500.0,0.00052328,31]
[312926492,1706462180501,500.0,0.00052054,31]
[312926493,1706462180669,500.0,0.00052602,31]
[312926494,1706462180786,500.0,0.00052328,31]
[312926495,1706462180954,500.0,0.00052876,31]
[312926496,1706462181041,500.0,0.00052602,31]
[312926497,1706462181293,500.0,0.00052054,31]
[312926498,1706462181329,500.0,0.00052876,31]
[312926499,1706462181582,500.0,0.0005315,31]
[312926500,1706462181616,500.0,0.0005315,31]
[312926501,1706462181889,500.0,0.00053424,31]
[312926502,1706462182162,500.0,0.00052328,31]
[312926503,1706462182216,500.0,0.00053698,31]
[312926504,1706462182254,500.0,0.00053424,31]
[312926505,1706462182432,154.45,0.00053972,31]
[312926506,1706462182469,500.0,0.00053698,31]
[312926507,1706462182503,500.0,0.00052602,31]
[312926508,1706462182730,172.09700129,0.00052876,31]
[312926509,1706462182768,500.0,0.00053972,31]
[312926510,1706462183026,500.0,0.00054246,31]
[312926511,1706462183310,500.0,0.0005452,120]
[312926512,1706462183939,500.0,0.00054794,120]
[312926513,1706462184661,500.0,0.00052054,31]
[312926514,1706462184949,500.0,0.00052054,31]
[312926515,1706462184983,500.0,0.00052328,31]
[312926516,1706462185200,500.0,0.00052328,31]
[312926517,1706462185235,500.0,0.00052602,31]
[312926518,1706462185267,500.0,0.00052054,31]
[312926519,1706462185476,325.95,0.00052602,31]
[312926520,1706462185526,500.0,0.00052876,31]
[312926521,1706462185797,500.0,0.0005315,31]
[312926522,1706462185927,500.0,0.00052328,31]
[312926523,1706462186194,500.0,0.00052602,31]
[312926524,1706462186359,500.0,0.00053424,31]
[312926525,1706462186396,500.0,0.00052054,31]
[312926526,1706462186469,500.0,0.00052876,31]
[312926527,1706462186645,500.0,0.00052328,31]
[312926528,1706462186752,500.0,0.0005315,31]
[312926529,1706462186922,500.0,0.00052602,31]
[312926530,1706462186956,500.0,0.00053698,31]
[312926531,1706462187218,500.0,0.00052876,31]
[312926532,1706462187383,284.53317421,0.00053424,31]
[312926533,1706462187522,500.0,0.0005315,31]
[312926534,1706462187581,500.0,0.00053972,31]
[312926535,1706462187842,500.0,0.00053424,31]
[312926536,1706462187885,500.0,0.00054246,31]
[312926537,1706462188160,500.0,0.0005452,120]
[312926538,1706462188195,500.0,0.00053698,31]
[312926539,1706462188435,500.0,0.00054794,120]
[312926540,1706462188766,500.0,0.00052054,31]
[312926541,1706462188828,500.0,0.00053972,31]
[312926542,1706462188861,500.0,0.00052054,31]
[312926543,1706462189127,500.0,0.00052328,31]
[312926544,1706462189329,2500.0,0.0005,120]
[312926545,1706462189371,500.0,0.00052328,31]
[312926546,1706462189403,500.0,0.00052602,31]
[312926547,1706462189446,500.0,0.00054246,31]
[312926548,1706462189636,500.0,0.00052602,31]
[312926549,1706462189844,500.0,0.00052876,31]
[312926550,1706462189879,500.0,0.0005452,120]
[312926551,1706462189912,500.0,0.00052054,31]
[312926552,1706462190020,500.0,0.00052876,31]
[312926553,1706462190059,500.0,0.00052328,31]
[312926554,1706462190090,373.5027886,0.0005315,31]
[312926555,1706462190121,500.0,0.00054794,120]
[312926556,1706462190155,500.0,0.00052054,31]
[312926557,1706462190187,500.0,0.0005315,31]
[312926558,1706462190291,500.0,0.00052602,31]
[312926559,1706462190342,500.0,0.00052328,31]
[312926560,1706462190446,500.0,0.00053424,31]
[312926561,1706462190601,500.0,0.00052876,31]
[312926562,1706462190784,500.0,0.00053698,31]
[312926563,1706462190879,500.0,0.0005315,31]
[312926564,1706462190939,500.0,0.00052602,31]
[312926565,1706462191061,500.0,0.00053972,31]
[312926566,1706462191222,500.0,0.00052876,31]
[312926567,1706462191335,500.0,0.00054246,31]
[312926568,1706462191469,500.0,0.00053424,31]
[312926569,1706462191503,500.0,0.0005315,31]
[312926570,1706462191655,500.0,0.0005452,120]
[312926571,1706462191785,500.0,0.00053698,31]
[312926572,1706462191818,500.0,0.00053424,31]
[312926573,1706462191868,1000.0,0.00052054,31]
[312926574,1706462191920,500.0,0.00054794,120]
[312926575,1706462192126,500.0,0.00053972,31]
[312926576,1706462192159,1000.0,0.00052328,31]
[312926577,1706462192421,500.0,0.00054246,31]
[312926578,1706462192452,1000.0,0.00052602,31]
[312926579,1706462192484,500.0,0.00053698,31]
[312926580,1706462192714,1000.0,0.00052876,31]
[312926581,1706462192757,500.0,0.00053972,31]
[312926582,1706462192789,721.07,0.00052054,31]
[312926583,1706462192986,1000.0,0.0005315,31]
[312926584,1706462193021,721.07,0.00052328,31]
[312926585,1706462193053,233.97,0.0005452,120]
[312926586,1706462193085,500.0,0.00054246,31]
[312926587,1706462193260,1000.0,0.00053424,31]
[312926588,1706462193295,721.07,0.00052602,31]
[312926589,1706462193327,500.0,0.0005452,120]
[312926590,1706462193521,1000.0,0.00053698,31]
[312926591,1706462193570,721.07,0.00052876,31]
[312926592,1706462193627,500.0,0.00052054,31]
[312926593,1706462193714,500.0,0.00054794,120]
[312926594,1706462193806,1000.0,0.00053972,31]
[312926595,1706462193847,721.07,0.0005315,31]
[312926596,1706462193886,-25000.0,0.00022899,2]
[312926597,1706462193927,447.18,0.00052328,31]
[312926598,1706462194118,1000.0,0.00054246,31]
[312926599,1706462194382,1000.0,0.0005452,31]
[312926600,1706462194665,1000.0,0.00054794,31]
[312926601,1706462194700,721.07,0.00053424,31]
[312926602,1706462194941,721.07,0.00053698,31]
[312926603,1706462195198,-25000.0,0.00022899,2]
[312926604,1706462195235,721.07,0.00053972,31]
[312926605,1706462195271,1742.755314,0.000547,32]
[312926606,1706462195543,721.07,0.00054246,31]
[312926607,1706462195821,500.0,0.00052054,31]
[312926608,1706462195862,721.07,0.0005452,120]
[312926609,1706462196222,-6556.62436146,0.00022899,2]
[312926610,1706462196247,-1472.82253988,0.00022899,2]
[312926611,1706462196272,-5000.0,0.000229,2]
[312926612,1706462196296,-3092.65983231,0.00022995,2]
[312926613,1706462196322,-244.33991493,0.00022996,2]
[312926614,1706462196346,-832.78952536,0.00022997,2]
[312926615,1706462196370,-7800.76382606,0.00022997,2]
[312926616,1706462196530,500.0,0.00052328,31]
[312926617,1706462196752,500.0,0.00052054,31]
[312926618,1706462196866,500.0,0.00052602,31]
[312926619,1706462197006,721.07,0.00054794,120]
[312926620,1706462197158,547.15,0.00052876,31]
[312926621,1706462197331,500.0,0.00052328,31]
[312926622,1706462197421,-25000.0,0.00022997,2]
[312926623,1706462197594,500.0,0.00052602,31]
[312926624,1706462197850,500.0,0.00052876,31]
[312926625,1706462198131,500.0,0.0005315,31]
[312926626,1706462198479,500.0,0.00052054,31]
[312926627,1706462198629,500.0,0.00052054,31]
[312926628,1706462198663,545.7789678,0.00052054,31]
[312926629,1706462198715,500.0,0.00052328,31]
[312926630,1706462198789,500.0,0.00053424,31]
[312926631,1706462198854,500.0,0.00052054,31]
[312926632,1706462198906,500.0,0.00052328,31]
[312926633,1706462199136,500.0,0.00052602,31]
[312926634,1706462199172,743.38,0.00052054,31]
[312926635,1706462199207,500.0,0.00053698,31]
[312926636,1706462199245,500.0,0.00052328,31]
[312926637,1706462199283,500.0,0.00052602,31]
[312926638,1706462199317,500.0,0.00052876,31]
[312926639,1706462199353,743.38,0.00052328,31]
[312926640,1706462199390,500.0,0.00053972,31]
[312926641,1706462199423,445.08,0.00052602,31]
[312926642,1706462199501,500.0,0.00052876,31]
[312926643,1706462199564,743.38,0.00052602,31]
[312926644,1706462199606,500.0,0.0005315,31]
[312926645,1706462199638,500.0,0.00054246,31]
[312926646,1706462199753,500.0,0.0005315,31]
[312926647,1706462199974,743.38,0.00052876,31]
[312926648,1706462200010,500.0,0.00053424,31]
[312926649,1706462200045,500.0,0.0005452,120]
[312926650,1706462200078,500.0,0.00053424,31]
[312926651,1706462200115,500.0,0.00053698,31]
[312926652,1706462200147,2236.94,0.00054433,120]
[312926653,1706462200204,500.0,0.00054794,120]
[312926654,1706462200360,228.34,0.00053972,31]
[312926655,1706462200471,743.38,0.0005315,31]
[312926656,1706462200503,500.0,0.00052054,31]
[312926657,1706462200614,500.0,0.00053698,31]
[312926658,1706462200741,500.0,0.00052328,31]
[312926659,1706462200790,743.38,0.00053424,31]
[312926660,1706462200884,500.0,0.00053972,31]
[312926661,1706462201047,487.48,0.00052602,31]
[312926662,1706462201083,743.38,0.00053698,31]
[312926663,1706462201456,743.38,0.00053972,31]
[312926664,1706462201513,500.0,0.00054246,31]
[312926665,1706462201801,500.0,0.0005452,120]
[312926666,1706462202041,743.38,0.00054246,31]
[312926667,1706462202075,500.0,0.00054794,120]
[312926668,1706462202315,743.38,0.0005452,120]
[312926669,1706462202584,743.38,0.00054794,120]
[312926670,1706462203111,500.0,0.00052054,31]
[312926671,1706462203381,500.0,0.00052328,31]
[312926672,1706462203416,263.7281966,0.00052054,31]
[312926673,1706462203661,500.0,0.00052602,31]
[312926674,1706462203946,500.0,0.00052876,31]
[312926675,1706462204225,500.0,0.0005315,31]
[312926676,1706462204499,500.0,0.00053424,31]
[312926677,1706462204765,500.0,0.00053698,31]
[312926678,1706462205073,500.0,0.00053972,31]
[312926679,1706462205372,500.0,0.00054246,31]
[312926680,1706462205627,500.0,0.0005452,120]
[312926681,1706462206225,500.0,0.00054794,120]
[312926682,1706462206488,330.41,0.00052054,31]
[312926683,1706462207386,657.22143,0.00054794,72]
[312926684,1706462207471,500.0,0.00052054,31]
[312926685,1706462207791,500.0,0.00052328,31]
[312926686,1706462208070,500.0,0.00052602,31]
[312926687,1706462208179,501.92,0.00054794,120]
[312926688,1706462208281,100000.0,0.000538,120]
[312926689,1706462208333,500.0,0.00052876,31]
[312926690,1706462208463,761.16,0.00052054,31]
[312926691,1706462208819,500.0,0.0005315,31]
[312926692,1706462208854,761.16,0.00052328,31]
[312926693,1706462209060,761.16,0.00052602,31]
[312926694,1706462209095,501.92,0.00054794,120]
[312926695,1706462209235,500.0,0.00053424,31]
[312926696,1706462209334,2500.0,0.0005,120]
[312926697,1706462209372,501.92,0.00054794,120]
[312926698,1706462209542,420.00026483,0.00053698,31]
[312926699,1706462209652,761.16,0.00052876,31]
[312926700,1706462209696,501.92,0.00054794,120]
[312926701,1706462209899,761.16,0.0005315,31]
[312926702,1706462209941,501.92,0.00054794,120]
[312926703,1706462210166,761.16,0.00053424,31]
[312926704,1706462210214,501.92,0.00054794,120]
[312926705,1706462210250,500.0,0.00052054,31]
[312926706,1706462210455,761.16,0.00053698,31]
[312926707,1706462210515,501.92,0.00054794,120]
[312926708,1706462210549,500.0,0.00052328,31]
[312926709,1706462210801,501.92,0.00054794,120]
[312926710,1706462211093,501.92,0.00054794,120]
[312926711,1706462211129,761.16,0.00053972,31]
[312926712,1706462211166,500.0,0.00052602,31]
[312926713,1706462211387,761.16,0.00054246,31]
[312926714,1706462211425,501.92,0.00054794,120]
[312926715,1706462211504,500.0,0.00052876,31]
[312926716,1706462211651,761.16,0.0005452,120]
[312926717,1706462211707,501.92,0.00054794,120]
[312926718,1706462211805,500.0,0.0005315,31]
[312926719,1706462211908,761.16,0.00054794,120]
[312926720,1706462212062,500.0,0.00053424,31]
[312926721,1706462212328,500.0,0.00053698,31]
[312926722,1706462212636,500.0,0.00053972,31]
[312926723,1706462212671,500.0,0.00052054,31]
[312926724,1706462212913,500.0,0.00054246,31]
[312926725,1706462212953,500.0,0.00052328,31]
[312926726,1706462213240,500.0,0.00052602,31]
[312926727,1706462213506,500.0,0.00052876,31]
[312926728,1706462213540,500.0,0.0005452,120]
[312926729,1706462213766,500.0,0.00054794,120]
[312926730,1706462213801,396.40569316,0.0005315,31]
[312926731,1706462216827,500.0,0.00052054,31]
[312926732,1706462217083,500.0,0.00052328,31]
[312926733,1706462217362,500.0,0.00052602,31]
[312926734,1706462217999,500.0,0.00052876,31]
[312926735,1706462218219,500.0,0.00052054,31]
[312926736,1706462218266,500.0,0.0005315,31]
[312926737,1706462218500,500.0,0.00052328,31]
[312926738,1706462218576,500.0,0.00053424,31]
[312926739,1706462218772,500.0,0.00052602,31]
[312926740,1706462219074,500.0,0.00052876,31]
[312926741,1706462219138,500.0,0.00052054,31]
[312926742,1706462219180,500.0,0.00053698,31]
[312926743,1706462219354,500.0,0.0005315,31]
[312926744,1706462219432,500.0,0.00052328,31]
[312926745,1706462219465,162.91,0.00053972,31]
[312926746,1706462219719,500.0,0.00052602,31]
[312926747,1706462219831,500.0,0.00053424,31]
[312926748,1706462220029,500.0,0.00052876,31]
[312926749,1706462220239,500.0,0.00053698,31]
[312926750,1706462220399,500.0,0.00053972,31]
[312926751,1706462220646,500.0,0.0005315,31]
[312926752,1706462220682,209.47526207,0.00054246,31]
[312926753,1706462220896,500.0,0.00053424,31]
[312926754,1706462221183,500.0,0.00053698,31]
[312926755,1706462221479,500.0,0.00053972,31]
[312926756,1706462221769,334.08291143,0.00054246,31]
[312926757,1706462222596,500.0,0.00052054,31]
[312926758,1706462222852,500.0,0.00052328,31]
[312926759,1706462223098,-213.2906,0.00022899,2]
[312926760,1706462223124,-10261.34129224,0.00022997,2]
[312926761,1706462223148,-313.49401505,0.00022997,2]
[312926762,1706462223172,-2138.69674334,0.00022998,2]
[312926763,1706462223196,-12073.17734937,0.00022999,2]
[312926764,1706462223236,500.0,0.00052602,31]
[312926765,1706462223269,500.0,0.00052054,31]
[312926766,1706462223395,500.0,0.00052876,31]
[312926767,1706462223439,500.0,0.00052328,31]
[312926768,1706462223619,632.1064493,0.00052054,31]
[312926769,1706462223688,500.0,0.0005315,31]
[312926770,1706462223737,500.0,0.00052602,31]
[312926771,1706462223810,500.0,0.00052054,31]
[312926772,1706462223860,500.0,0.00052054,31]
[312926773,1706462224088,500.0,0.00052328,31]
[312926774,1706462224173,500.0,0.00052328,31]
[312926775,1706462224219,500.0,0.00052876,31]
[312926776,1706462224251,-25000.0,0.00022999,2]
[312926777,1706462224288,500.0,0.00052054,31]
[312926778,1706462224327,500.0,0.00053424,31]
[312926779,1706462224430,500.0,0.00052602,31]
[312926780,1706462224466,445.99046004,0.0005315,31]
[312926781,1706462224499,352.22836072,0.00052328,31]
[312926782,1706462224568,500.0,0.00053698,31]
[312926783,1706462224684,500.0,0.00052602,31]
[312926784,1706462224718,500.0,0.00052876,31]
[312926785,1706462224804,561.04,0.00052054,31]
[312926786,1706462224846,405.06,0.00053972,31]
[312926787,1706462224947,248.41228407,0.00052876,31]
[312926788,1706462224990,503.01156209,0.0005315,31]
[312926789,1706462225056,561.04,0.00052328,31]
[312926790,1706462225112,-25000.0,0.00022999,2]
[312926791,1706462225351,561.04,0.00052602,31]
[312926792,1706462225684,183.33,0.00031609,120]
[312926793,1706462225964,561.04,0.00052876,31]
[312926794,1706462226098,-25000.0,0.00022999,2]
[312926795,1706462226264,561.04,0.0005315,31]
[312926796,1706462226398,500.0,0.00052054,31]
[312926797,1706462226578,561.04,0.00053424,31]
[312926798,1706462226877,561.04,0.00053698,31]
[312926799,1706462227053,500.0,0.00052328,31]
[312926800,1706462227088,500.0,0.00052054,31]
[312926801,1706462227150,561.04,0.00053972,31]
[312926802,1706462227334,532.43011233,0.00052602,31]
[312926803,1706462227369,2500.0,0.0005,120]
[312926804,1706462227476,500.0,0.00052054,31]
[312926805,1706462227510,561.04,0.00054246,31]
[312926806,1706462227679,500.0,0.00052328,31]
[312926807,1706462227789,561.04,0.0005452,120]
[312926808,1706462228056,500.0,0.00052602,31]
[312926809,1706462228093,561.04,0.00054794,120]
[312926810,1706462228130,500.0,0.00052328,31]
[312926811,1706462228649,500.0,0.00052876,31]
[312926812,1706462228742,500.0,0.00052602,31]
[312926813,1706462228908,500.0,0.0005315,31]
[312926814,1706462229198,500.0,0.00053424,31]
[312926815,1706462229380,500.0,0.00052876,31]
[312926816,1706462229465,500.0,0.00053698,31]
[312926817,1706462229636,500.0,0.0005315,31]
[312926818,1706462229743,500.0,0.00053972,31]
[312926819,1706462229940,500.0,0.00053424,31]
[312926820,1706462230163,500.0,0.00054246,31]